[Event "56th Biel Festival Rapid 2023"]
[Site "Biel"]
[Date "2024.04.13"]
[Round "8.5"]
[White "Toktomushev, Teimur"]
[Black "Saraci, Nderim"]
[Result "0-1"]
[WhiteElo "2206"]
[BlackElo "2472"]
[PlyCount "47"]
[EventDate "2023.07.16"]
[EventType "swiss"]
[EventCountry "SUI"]
[TimeControl "900+5"]

1. d4 {[%emt 0:00:08]} Nf6 {[%emt 0:00:03]} 2. c4 {[%emt 0:00:02]} g6 {[%emt 0:00:10]} 3. Nc3 {[%emt 0:00:02]} Bg7 {[%emt 0:00:03]} 4. e4 {[%emt 0:00:01]} d6 {[%emt 0:00:02]} 5. f3 {[%emt 0:00:02]} c5 {[%emt 0:00:06]} 6. Nge2 {[%emt 0:00:02]} Nc6 {[%emt 0:00:19]} 7. Be3 {[%emt 0:00:26]} cxd4 {[%emt 0:00:07]} 8. Nxd4 {[%emt 0:00:02]} O-O {[%emt 0:01:04]} 9. Qd2 {[%emt 0:00:03]} Nxd4 {[%emt 0:00:54]} 10. Bxd4 {[%emt 0:00:02]} Be6 {[%emt 0:00:05]} 11. O-O-O {[%emt 0:01:46]} Qa5 {[%emt 0:02:41]} 12. Kb1 {[%emt 0:00:25]} Rfc8 {[%emt 0:00:03]} 13. b3 {[%emt 0:00:07]} a6 {[%emt 0:00:26]} 14. Na4 {[%emt 0:01:50]} Qxd2 {[%emt 0:00:13]} 15. Rxd2 {[%emt 0:00:01]} Nd7 {[%emt 0:00:20]} 16. Bxg7 {[%emt 0:00:18]} Kxg7 {[%emt 0:00:02]} 17. Be2 {[%emt 0:01:36]} Rab8 {[%emt 0:00:10]} 18. Rc1 {[%emt 0:00:16]} Rc6 {[%emt 0:01:24]} 19. Kb2 {[%emt 0:02:18]} Rc5 {[%emt 0:02:53]} 20. Nc3 {[%emt 0:00:05]} Nf6 {[%emt 0:00:49]} 21. f4 {[%emt 0:02:38]} h5 {[%emt 0:01:40]} 22. Bf3 {[%emt 0:01:43]} Bd5 {[%emt 0:00:16]} 23. g3 {[%emt 0:01:27]} Kf8 {[%emt 0:01:39]} 24. h3 {[%emt 0:00:34]} 0-1

[Event "56th Biel Festival Rapid 2023"]
[Site "Biel"]
[Date "2024.04.13"]
[Round "8.6"]
[White "Matta, Vinay Kumar"]
[Black "Harikrishnan.A.Ra"]
[Result "0-1"]
[WhiteElo "2111"]
[BlackElo "2406"]
[PlyCount "160"]
[EventDate "2023.07.16"]
[EventType "swiss"]
[EventCountry "SUI"]
[TimeControl "900+5"]

1. e4 {[%emt 0:00:10]} e5 {[%emt 0:00:20]} 2. Nf3 {[%emt 0:00:13]} Nf6 {[%emt 0:00:01]} 3. Nc3 {[%emt 0:00:07]} Nc6 {[%emt 0:00:02]} 4. d4 {[%emt 0:00:04]} exd4 {[%emt 0:00:06]} 5. Nxd4 {[%emt 0:00:03]} Bb4 {[%emt 0:00:09]} 6. Nxc6 {[%emt 0:00:03]} bxc6 {[%emt 0:00:04]} 7. Bd3 {[%emt 0:00:03]} O-O {[%emt 0:00:19]} 8. O-O {[%emt 0:00:16]} d5 {[%emt 0:00:06]} 9. exd5 {[%emt 0:00:04]} Bg4 {[%emt 0:00:01]} 10. f3 {[%emt 0:00:46]} Bh5 {[%emt 0:00:02]} 11. Bg5 {[%emt 0:00:23]} cxd5 {[%emt 0:02:23]} 12. Bxf6 {[%emt 0:00:43]} Qxf6 {[%emt 0:00:02]} 13. Nxd5 {[%emt 0:00:10]} Bc5+ {[%emt 0:00:22]} 14. Kh1 {[%emt 0:00:14]} Qxb2 {[%emt 0:00:04]} 15. Nf4 {[%emt 0:01:42]} Qe5 {[%emt 0:01:00]} 16. Nxh5 {[%emt 0:00:21]} Qxh5 {[%emt 0:00:02]} 17. f4 {[%emt 0:00:14]} Qh4 {[%emt 0:00:09]} 18. Qf3 {[%emt 0:00:07]} Rae8 {[%emt 0:02:41]} 19. g3 {[%emt 0:00:51]} Qe7 {[%emt 0:00:28]} 20. Bb5 {[%emt 0:00:17]} Rb8 {[%emt 0:00:16]} 21. Rfe1 {[%emt 0:00:33]} Qf6 {[%emt 0:00:19]} 22. Bd3 {[%emt 0:00:18]} g6 {[%emt 0:00:27]} 23. Rad1 {[%emt 0:01:30]} Kg7 {[%emt 0:00:32]} 24. Qd5 {[%emt 0:00:21]} Bb6 {[%emt 0:00:20]} 25. Qe5 {[%emt 0:00:26]} h5 {[%emt 0:00:34]} 26. Bc4 {[%emt 0:00:26]} Rbd8 {[%emt 0:00:26]} 27. Qxf6+ {[%emt 0:01:16]} Kxf6 {[%emt 0:00:02]} 28. Kg2 {[%emt 0:00:08]} Ba5 {[%emt 0:00:28]} 29. Rxd8 {[%emt 0:00:31]} Rxd8 {[%emt 0:00:01]} 30. Re2 {[%emt 0:00:10]} Bb6 {[%emt 0:00:06]} 31. Bd3 {[%emt 0:00:22]} a5 {[%emt 0:00:53]} 32. Kf3 {[%emt 0:00:10]} a4 {[%emt 0:00:54]} 33. h3 {[%emt 0:01:30]} a3 {[%emt 0:00:41]} 34. g4 {[%emt 0:00:28]} hxg4+ {[%emt 0:00:08]} 35. hxg4 {[%emt 0:00:02]} Bc5 {[%emt 0:00:10]} 36. g5+ {[%emt 0:00:12]} Kg7 {[%emt 0:00:01]} 37. f5 {[%emt 0:00:29]} gxf5 {[%emt 0:00:02]} 38. Re5 {[%emt 0:00:09]} Bb4 {[%emt 0:02:14]} 39. Rxf5 {[%emt 0:00:13]} Rd7 {[%emt 0:00:05]} 40. Rb5 {[%emt 0:00:33]} c5 {[%emt 0:00:16]} 41. Be4 {[%emt 0:00:34]} Rd1 {[%emt 0:00:42]} 42. c3 {[%emt 0:00:35]} Bxc3 {[%emt 0:00:16]} 43. Rxc5 {[%emt 0:00:02]} Bb2 {[%emt 0:00:06]} 44. Bd5 {[%emt 0:00:12]} Rf1+ {[%emt 0:00:04]} 45. Ke4 {[%emt 0:00:17]} Re1+ {[%emt 0:00:02]} 46. Kf4 {[%emt 0:00:19]} Bc1+ {[%emt 0:00:06]} 47. Kf3 {[%emt 0:00:03]} Bxg5 {[%emt 0:00:09]} 48. Rc7 {[%emt 0:00:05]} Be7 {[%emt 0:00:03]} 49. Bb3 {[%emt 0:00:03]} Re5 {[%emt 0:00:02]} 50. Rb7 {[%emt 0:00:02]} Kg6 {[%emt 0:00:06]} 51. Rd7 {[%emt 0:00:02]} f6 {[%emt 0:00:09]} 52. Rd5 {[%emt 0:00:04]} Re1 {[%emt 0:00:02]} 53. Bc2+ {[%emt 0:00:02]} Kg7 {[%emt 0:00:06]} 54. Rd2 {[%emt 0:00:06]} Bc5 {[%emt 0:00:09]} 55. Bb3 {[%emt 0:00:11]} Re3+ {[%emt 0:00:07]} 56. Kg4 {[%emt 0:00:05]} Re4+ {[%emt 0:00:03]} 57. Kf3 {[%emt 0:00:06]} Re3+ {[%emt 0:00:03]} 58. Kg4 {[%emt 0:00:02]} Kg6 {[%emt 0:00:06]} 59. Bc2+ {[%emt 0:00:10]} Kf7 {[%emt 0:00:01]} 60. Bb3+ {[%emt 0:00:02]} Ke7 {[%emt 0:00:01]} 61. Kf4 {[%emt 0:00:13]} Rc3 {[%emt 0:00:15]} 62. Rc2 {[%emt 0:00:07]} Bd6+ {[%emt 0:00:01]} 63. Ke4 {[%emt 0:00:02]} Rg3 {[%emt 0:00:08]} 64. Bc4 {[%emt 0:00:06]} Rg4+ {[%emt 0:00:02]} 65. Kd5 {[%emt 0:00:02]} Be5 {[%emt 0:00:02]} 66. Bb3 {[%emt 0:00:03]} Rd4+ {[%emt 0:00:01]} 67. Kc5 {[%emt 0:00:01]} Rd8 {[%emt 0:00:04]} 68. Kb5 {[%emt 0:00:02]} f5 {[%emt 0:00:11]} 69. Rc5 {[%emt 0:00:04]} Kf6 {[%emt 0:00:00]} 70. Rc6+ {[%emt 0:00:02]} Kg5 {[%emt 0:00:00]} 71. Rc5 {[%emt 0:00:01]} Re8 {[%emt 0:00:10]} 72. Kc6 {[%emt 0:00:10]} Kf6 {[%emt 0:00:10]} 73. Ra5 {[%emt 0:00:06]} Rc8+ {[%emt 0:00:04]} 74. Kd5 {[%emt 0:00:06]} Rd8+ {[%emt 0:00:03]} 75. Kc6 {[%emt 0:00:02]} Bb2 {[%emt 0:00:03]} 76. Kc7 {[%emt 0:00:10]} Rd3 {[%emt 0:00:06]} 77. Kc6 {[%emt 0:00:22]} f4 {[%emt 0:00:01]} 78. Rd5 {[%emt 0:00:04]} Rxb3 {[%emt 0:00:11]} 79. axb3 {[%emt 0:00:02]} a2 {[%emt 0:00:01]} 80. Rd1 {[%emt 0:00:03]} a1=Q {[%emt 0:00:02]} 0-1

[Event "56th Biel Festival Rapid 2023"]
[Site "Biel"]
[Date "2024.04.13"]
[Round "8.7"]
[White "Vantika Agrawal"]
[Black "Haugner, Jan"]
[Result "1-0"]
[WhiteElo "2428"]
[BlackElo "2066"]
[PlyCount "43"]
[EventDate "2023.07.16"]
[EventType "swiss"]
[EventCountry "SUI"]
[TimeControl "900+5"]

1. d4 {[%emt 0:00:10]} d5 {[%emt 0:00:05]} 2. c4 {[%emt 0:00:01]} e6 {[%emt 0:00:01]} 3. Nf3 {[%emt 0:00:02]} a6 {[%emt 0:00:00]} 4. Bg5 {[%emt 0:00:21]} Be7 {[%emt 0:00:01]} 5. Bxe7 {[%emt 0:00:03]} Qxe7 {[%emt 0:00:12]} 6. Qc2 {[%emt 0:02:22]} Nf6 {[%emt 0:01:59]} 7. Nbd2 {[%emt 0:00:24]} O-O {[%emt 0:00:31]} 8. e3 {[%emt 0:00:10]} Nbd7 {[%emt 0:00:29]} 9. cxd5 {[%emt 0:00:12]} exd5 {[%emt 0:01:57]} 10. Qxc7 {[%emt 0:00:11]} Ne8 {[%emt 0:01:37]} 11. Qc2 {[%emt 0:00:22]} Nd6 {[%emt 0:00:05]} 12. Bd3 {[%emt 0:00:02]} Nf6 {[%emt 0:00:03]} 13. O-O {[%emt 0:00:05]} Bg4 {[%emt 0:00:11]} 14. Ne5 {[%emt 0:00:11]} Bh5 {[%emt 0:00:14]} 15. Rac1 {[%emt 0:00:05]} Rac8 {[%emt 0:00:36]} 16. Qb1 {[%emt 0:00:20]} Bg6 {[%emt 0:00:49]} 17. Nxg6 {[%emt 0:00:34]} hxg6 {[%emt 0:00:10]} 18. Rxc8 {[%emt 0:00:02]} Rxc8 {[%emt 0:00:02]} 19. Rc1 {[%emt 0:00:02]} Rxc1+ {[%emt 0:00:31]} 20. Qxc1 {[%emt 0:00:01]} Ng4 {[%emt 0:00:04]} 21. Nf3 {[%emt 0:00:23]} Ne4 {[%emt 0:00:32]} 22. Qc8+ {[%emt 0:00:20]} 1-0

[Event "56th Biel Festival Rapid 2023"]
[Site "Biel"]
[Date "2024.04.13"]
[Round "8.8"]
[White "Vincenti, Leonardo"]
[Black "Mikavica, Dragoljub"]
[Result "1-0"]
[WhiteElo "2117"]
[BlackElo "2041"]
[PlyCount "57"]
[EventDate "2023.07.16"]
[EventType "swiss"]
[EventCountry "SUI"]
[TimeControl "900+5"]

1. e4 {[%emt 0:00:11]} e5 {[%emt 0:00:05]} 2. Nf3 {[%emt 0:00:01]} Nc6 {[%emt 0:00:00]} 3. d4 {[%emt 0:00:01]} exd4 {[%emt 0:00:00]} 4. Nxd4 {[%emt 0:00:01]} d6 {[%emt 0:00:00]} 5. Nc3 {[%emt 0:00:06]} Nf6 {[%emt 0:00:00]} 6. Bc4 {[%emt 0:00:06]} Be7 {[%emt 0:00:02]} 7. O-O {[%emt 0:00:03]} O-O {[%emt 0:00:06]} 8. a3 {[%emt 0:00:17]} Ne5 {[%emt 0:00:00]} 9. Ba2 {[%emt 0:00:03]} c6 {[%emt 0:00:05]} 10. Re1 {[%emt 0:00:46]} Ng6 {[%emt 0:00:35]} 11. Qe2 {[%emt 0:00:40]} Qc7 {[%emt 0:00:14]} 12. Nf5 {[%emt 0:00:13]} a5 {[%emt 0:00:53]} 13. h3 {[%emt 0:00:53]} Re8 {[%emt 0:00:06]} 14. Nxe7+ {[%emt 0:00:05]} Qxe7 {[%emt 0:00:11]} 15. Qf3 {[%emt 0:00:21]} Ne5 {[%emt 0:00:08]} 16. Qg3 {[%emt 0:00:24]} b5 {[%emt 0:00:25]} 17. Bg5 {[%emt 0:00:33]} Be6 {[%emt 0:00:52]} 18. f4 {[%emt 0:01:13]} Qa7+ {[%emt 0:01:20]} 19. Kh1 {[%emt 0:00:26]} Ng6 {[%emt 0:03:00]} 20. Bxf6 {[%emt 0:00:34]} Bxa2 {[%emt 0:00:26]} 21. Nxa2 {[%emt 0:00:35]} gxf6 {[%emt 0:00:10]} 22. f5 {[%emt 0:00:01]} Qd4 {[%emt 0:00:21]} 23. fxg6 {[%emt 0:00:32]} hxg6 {[%emt 0:00:05]} 24. Nc3 {[%emt 0:00:48]} Re5 {[%emt 0:00:11]} 25. Rad1 {[%emt 0:01:14]} Qc5 {[%emt 0:00:03]} 26. Qe3 {[%emt 0:00:46]} Rae8 {[%emt 0:00:19]} 27. Qd4 {[%emt 0:00:18]} Kg7 {[%emt 0:00:04]} 28. Rg1 {[%emt 0:02:52]} Kf8 {[%emt 0:01:19]} 29. Kh2 {[%emt 0:00:04]} 1-0

[Event "56th Biel Festival Rapid 2023"]
[Site "Biel"]
[Date "2024.04.13"]
[Round "8.10"]
[White "Habibi, Ali"]
[Black "Olarte, Stefan"]
[Result "*"]
[WhiteElo "2171"]
[BlackElo "1879"]
[PlyCount "91"]
[EventDate "2023.07.16"]
[EventType "swiss"]
[EventCountry "SUI"]
[TimeControl "900+5"]

1. Nf3 {[%emt 0:00:15]} g6 {[%emt 0:00:11]} 2. g3 {[%emt 0:00:02]} Bg7 {[%emt 0:00:02]} 3. Bg2 {[%emt 0:00:02]} e5 {[%emt 0:00:39]} 4. d3 {[%emt 0:00:05]} Ne7 {[%emt 0:00:19]} 5. c4 {[%emt 0:00:08]} c6 {[%emt 0:00:13]} 6. O-O {[%emt 0:00:05]} d5 {[%emt 0:00:33]} 7. cxd5 {[%emt 0:00:03]} cxd5 {[%emt 0:00:04]} 8. Nc3 {[%emt 0:00:12]} d4 {[%emt 0:00:41]} 9. Ne4 {[%emt 0:00:29]} a5 {[%emt 0:00:29]} 10. a4 {[%emt 0:00:11]} Ra6 {[%emt 0:00:08]} 11. Ned2 {[%emt 0:00:50]} Nbc6 {[%emt 0:00:31]} 12. Nc4 {[%emt 0:00:16]} O-O {[%emt 0:00:58]} 13. Bd2 {[%emt 0:00:29]} Nd5 {[%emt 0:00:33]} 14. Qc1 {[%emt 0:00:36]} f6 {[%emt 0:00:32]} 15. Bh6 {[%emt 0:00:29]} g5 {[%emt 0:01:13]} 16. Bxg7 {[%emt 0:00:04]} Kxg7 {[%emt 0:00:03]} 17. Nfd2 {[%emt 0:00:14]} f5 {[%emt 0:00:29]} 18. Nf3 {[%emt 0:00:43]} e4 {[%emt 0:01:46]} 19. dxe4 {[%emt 0:00:26]} fxe4 {[%emt 0:00:03]} 20. Qxg5+ {[%emt 0:00:08]} Qxg5 {[%emt 0:00:03]} 21. Nxg5 {[%emt 0:00:02]} Bf5 {[%emt 0:00:59]} 22. Nxe4 {[%emt 0:00:07]} Ndb4 {[%emt 0:00:09]} 23. Nc5 {[%emt 0:00:41]} Ra7 {[%emt 0:00:19]} 24. Nd6 {[%emt 0:00:14]} b6 {[%emt 0:00:12]} 25. Nxf5+ {[%emt 0:00:35]} Rxf5 {[%emt 0:00:03]} 26. Nb3 {[%emt 0:00:25]} Re7 {[%emt 0:00:21]} 27. Rac1 {[%emt 0:00:05]} Rf6 {[%emt 0:00:21]} 28. Rfe1 {[%emt 0:00:46]} d3 {[%emt 0:00:11]} 29. exd3 {[%emt 0:00:20]} Rxe1+ {[%emt 0:00:26]} 30. Rxe1 {[%emt 0:00:02]} Nxd3 {[%emt 0:00:02]} 31. Re2 {[%emt 0:00:18]} Nce5 {[%emt 0:00:16]} 32. Be4 {[%emt 0:00:22]} h5 {[%emt 0:01:01]} 33. h4 {[%emt 0:00:40]} Nb4 {[%emt 0:00:24]} 34. Kg2 {[%emt 0:00:12]} Rd6 {[%emt 0:00:21]} 35. Rd2 {[%emt 0:00:28]} Nc4 {[%emt 0:00:09]} 36. Re2 {[%emt 0:01:20]} Kf6 {[%emt 0:00:46]} 37. Bf3 {[%emt 0:00:30]} Rd3 {[%emt 0:00:43]} 38. Na1 {[%emt 0:01:36]} Rd1 {[%emt 0:01:28]} 39. Nc2 {[%emt 0:00:19]} Nd3 {[%emt 0:00:10]} 40. b3 {[%emt 0:00:24]} Nd6 {[%emt 0:00:15]} 41. Bxh5 {[%emt 0:00:38]} Rc1 {[%emt 0:00:02]} 42. Nd4 {[%emt 0:00:25]} Ne1+ {[%emt 0:00:06]} 43. Kh2 {[%emt 0:00:09]} Nc8 {[%emt 0:00:03]} 44. Re6+ {[%emt 0:00:24]} Kg7 {[%emt 0:00:01]} 45. Nf5+ {[%emt 0:00:08]} Kh7 {[%emt 0:00:09]} 46. Bg6+ {[%emt 0:00:03]} *

[Event "56th Biel Festival Rapid 2023"]
[Site "Biel"]
[Date "2024.04.13"]
[Round "8.11"]
[White "Schweizer, Samuel"]
[Black "Haimovich, Tal"]
[Result "0-1"]
[WhiteElo "2084"]
[BlackElo "2374"]
[PlyCount "106"]
[EventDate "2023.07.16"]
[EventType "swiss"]
[EventCountry "SUI"]
[TimeControl "900+5"]

1. e4 {[%emt 0:00:16]} e5 {[%emt 0:00:02]} 2. Nf3 {[%emt 0:00:02]} Nc6 {[%emt 0:00:02]} 3. Nc3 {[%emt 0:00:02]} g6 {[%emt 0:00:07]} 4. g3 {[%emt 0:00:47]} Bg7 {[%emt 0:00:02]} 5. Bg2 {[%emt 0:00:01]} Nge7 {[%emt 0:00:14]} 6. d3 {[%emt 0:00:03]} O-O {[%emt 0:00:22]} 7. h3 {[%emt 0:00:07]} d6 {[%emt 0:00:05]} 8. g4 {[%emt 0:00:20]} d5 {[%emt 0:00:13]} 9. Bg5 {[%emt 0:00:13]} h6 {[%emt 0:00:53]} 10. Bxe7 {[%emt 0:00:28]} Nxe7 {[%emt 0:00:02]} 11. Qd2 {[%emt 0:00:04]} Be6 {[%emt 0:00:07]} 12. a3 {[%emt 0:00:27]} c6 {[%emt 0:00:15]} 13. Ne2 {[%emt 0:00:12]} Qb6 {[%emt 0:00:21]} 14. Qb4 {[%emt 0:00:13]} Qc7 {[%emt 0:00:32]} 15. Ng3 {[%emt 0:00:17]} c5 {[%emt 0:00:09]} 16. Qc3 {[%emt 0:00:17]} c4 {[%emt 0:00:46]} 17. O-O {[%emt 0:00:14]} Rac8 {[%emt 0:00:14]} 18. Rac1 {[%emt 0:00:14]} d4 {[%emt 0:01:29]} 19. Qe1 {[%emt 0:00:20]} Qb6 {[%emt 0:00:05]} 20. Qc3 {[%emt 0:00:00]} Qc7 {[%emt 0:00:00]} 21. Qe1 {[%emt 0:00:10]} Qb6 {[%emt 0:00:10]} 22. dxc4 {[%emt 0:00:38]} Bxc4 {[%emt 0:00:05]} 23. b3 {[%emt 0:00:03]} Bxf1 {[%emt 0:00:16]} 24. Bxf1 {[%emt 0:00:03]} Rc7 {[%emt 0:01:13]} 25. Bd3 {[%emt 0:00:19]} Rfc8 {[%emt 0:00:24]} 26. Qd2 {[%emt 0:00:21]} Qd6 {[%emt 0:00:28]} 27. Ra1 {[%emt 0:00:14]} Qf6 {[%emt 0:00:35]} 28. Kg2 {[%emt 0:00:08]} Nc6 {[%emt 0:00:59]} 29. Rf1 {[%emt 0:00:10]} Nd8 {[%emt 0:00:03]} 30. h4 {[%emt 0:00:42]} Ne6 {[%emt 0:00:26]} 31. Ne2 {[%emt 0:00:28]} Nc5 {[%emt 0:00:22]} 32. g5 {[%emt 0:00:10]} hxg5 {[%emt 0:00:09]} 33. hxg5 {[%emt 0:00:01]} Qc6 {[%emt 0:00:25]} 34. Ng3 {[%emt 0:00:35]} Nxd3 {[%emt 0:00:09]} 35. cxd3 {[%emt 0:00:03]} Qc3 {[%emt 0:00:03]} 36. Qd1 {[%emt 0:00:56]} Qb2 {[%emt 0:00:13]} 37. Nh2 {[%emt 0:00:12]} Rc3 {[%emt 0:01:22]} 38. Qg4 {[%emt 0:00:20]} Qxb3 {[%emt 0:00:16]} 39. Qh3 {[%emt 0:00:05]} Qe6 {[%emt 0:00:12]} 40. Ng4 {[%emt 0:00:12]} Rc1 {[%emt 0:00:29]} 41. Rxc1 {[%emt 0:00:16]} Rxc1 {[%emt 0:00:01]} 42. Kh2 {[%emt 0:00:28]} Rc2 {[%emt 0:01:19]} 43. Kg2 {[%emt 0:00:12]} Rc3 {[%emt 0:00:18]} 44. Ne2 {[%emt 0:00:04]} Rxa3 {[%emt 0:00:13]} 45. f4 {[%emt 0:00:51]} Rxd3 {[%emt 0:00:31]} 46. Nh6+ {[%emt 0:00:23]} Bxh6 {[%emt 0:00:05]} 47. Qxd3 {[%emt 0:00:04]} Qg4+ {[%emt 0:00:10]} 48. Kf2 {[%emt 0:00:01]} Bg7 {[%emt 0:00:05]} 49. fxe5 {[%emt 0:00:21]} Bxe5 {[%emt 0:00:04]} 50. Nxd4 {[%emt 0:00:03]} Qd7 {[%emt 0:00:11]} 51. Ke3 {[%emt 0:00:08]} Bxd4+ {[%emt 0:00:03]} 52. Qxd4 {[%emt 0:00:02]} Qxd4+ {[%emt 0:00:02]} 53. Kxd4 {[%emt 0:00:01]} a5 {[%emt 0:00:02]} 0-1

[Event "56th Biel Festival Rapid 2023"]
[Site "Biel"]
[Date "2024.04.13"]
[Round "8.14"]
[White "Schmuki, Roman"]
[Black "Ouellet, Maili-Jade"]
[Result "0-1"]
[WhiteElo "1867"]
[BlackElo "2201"]
[PlyCount "48"]
[EventDate "2023.07.16"]
[EventType "swiss"]
[EventCountry "SUI"]
[TimeControl "900+5"]

1. e4 {[%emt 0:00:10]} c6 {[%emt 0:00:02]} 2. d4 {[%emt 0:00:04]} d5 {[%emt 0:00:02]} 3. exd5 {[%emt 0:00:01]} cxd5 {[%emt 0:00:01]} 4. c4 {[%emt 0:00:01]} Nf6 {[%emt 0:00:04]} 5. Nc3 {[%emt 0:00:03]} e6 {[%emt 0:00:03]} 6. Nf3 {[%emt 0:00:03]} Bb4 {[%emt 0:00:21]} 7. Bd3 {[%emt 0:01:06]} dxc4 {[%emt 0:00:14]} 8. Bxc4 {[%emt 0:00:05]} O-O {[%emt 0:00:11]} 9. O-O {[%emt 0:00:23]} b6 {[%emt 0:00:31]} 10. a3 {[%emt 0:00:41]} Be7 {[%emt 0:00:54]} 11. Qe2 {[%emt 0:00:15]} Bb7 {[%emt 0:00:08]} 12. Rd1 {[%emt 0:00:04]} Nbd7 {[%emt 0:00:22]} 13. Ne5 {[%emt 0:00:28]} Rc8 {[%emt 0:00:49]} 14. Bg5 {[%emt 0:00:52]} h6 {[%emt 0:02:58]} 15. Bh4 {[%emt 0:01:04]} Ne8 {[%emt 0:01:09]} 16. Nxf7 {[%emt 0:02:35]} Rxf7 {[%emt 0:00:17]} 17. Bxe7 {[%emt 0:02:27]} Rxe7 {[%emt 0:00:37]} 18. Bxe6+ {[%emt 0:00:08]} Kh8 {[%emt 0:00:07]} 19. Qg4 {[%emt 0:01:41]} Nef6 {[%emt 0:01:02]} 20. Qh3 {[%emt 0:00:01]} Qe8 {[%emt 0:00:15]} 21. d5 {[%emt 0:00:04]} Rd8 {[%emt 0:00:16]} 22. Rd4 {[%emt 0:01:10]} Nf8 {[%emt 0:00:26]} 23. Rh4 {[%emt 0:00:55]} Nxe6 {[%emt 0:00:16]} 24. dxe6 {[%emt 0:00:22]} Rxe6 {[%emt 0:00:05]} 0-1

[Event "56th Biel Festival Rapid 2023"]
[Site "Biel"]
[Date "2024.04.13"]
[Round "8.15"]
[White "Ristevski, Sasko"]
[Black "Kocharin, Timur"]
[Result "*"]
[WhiteElo "1925"]
[BlackElo "2225"]
[PlyCount "98"]
[EventDate "2023.07.16"]
[EventType "swiss"]
[EventCountry "SUI"]
[TimeControl "900+5"]

1. d4 {[%emt 0:00:14]} Nf6 {[%emt 0:00:02]} 2. Nf3 {[%emt 0:00:04]} d5 {[%emt 0:00:22]} 3. e3 {[%emt 0:00:05]} c5 {[%emt 0:00:02]} 4. Nbd2 {[%emt 0:00:17]} Nc6 {[%emt 0:00:03]} 5. c3 {[%emt 0:00:03]} cxd4 {[%emt 0:00:05]} 6. exd4 {[%emt 0:00:02]} Bg4 {[%emt 0:00:04]} 7. Bd3 {[%emt 0:00:21]} e6 {[%emt 0:00:04]} 8. O-O {[%emt 0:00:02]} Bd6 {[%emt 0:00:03]} 9. h3 {[%emt 0:00:40]} Bh5 {[%emt 0:00:04]} 10. Re1 {[%emt 0:00:18]} O-O {[%emt 0:00:06]} 11. Be2 {[%emt 0:01:24]} Nd7 {[%emt 0:00:28]} 12. Nf1 {[%emt 0:00:15]} Qc7 {[%emt 0:00:06]} 13. Bg5 {[%emt 0:01:47]} f6 {[%emt 0:00:05]} 14. Bh4 {[%emt 0:00:05]} Bf7 {[%emt 0:00:04]} 15. Bg3 {[%emt 0:00:09]} e5 {[%emt 0:00:08]} 16. Ne3 {[%emt 0:00:33]} e4 {[%emt 0:00:08]} 17. Bxd6 {[%emt 0:00:15]} Qxd6 {[%emt 0:00:03]} 18. Nh2 {[%emt 0:00:21]} Nb6 {[%emt 0:00:10]} 19. Nhf1 {[%emt 0:03:03]} Be6 {[%emt 0:00:04]} 20. Nh2 {[%emt 0:00:05]} Bf7 {[%emt 0:00:05]} 21. Nhf1 {[%emt 0:00:05]} Be6 {[%emt 0:00:05]} 22. Nh2 {[%emt 0:00:05]} Bf7 {[%emt 0:00:05]} 23. Nhf1 {[%emt 0:00:05]} Be6 {[%emt 0:00:05]} 24. a4 {[%emt 0:00:05]} a5 {[%emt 0:00:03]} 25. Qb3 {[%emt 0:00:17]} Nd7 {[%emt 0:00:10]} 26. c4 {[%emt 0:00:22]} Nxd4 {[%emt 0:00:07]} 27. Qd1 {[%emt 0:00:14]} Nxe2+ {[%emt 0:00:05]} 28. Qxe2 {[%emt 0:00:01]} d4 {[%emt 0:00:02]} 29. Nd5 {[%emt 0:00:18]} Bxd5 {[%emt 0:00:05]} 30. cxd5 {[%emt 0:00:01]} f5 {[%emt 0:00:02]} 31. Qb5 {[%emt 0:00:17]} Nf6 {[%emt 0:00:05]} 32. Ng3 {[%emt 0:00:23]} Nxd5 {[%emt 0:00:08]} 33. Rad1 {[%emt 0:01:45]} d3 {[%emt 0:00:07]} 34. Qc4 {[%emt 0:00:30]} Kh8 {[%emt 0:00:03]} 35. Qd4 {[%emt 0:00:44]} Rad8 {[%emt 0:00:04]} 36. Nh5 {[%emt 0:00:33]} Nf6 {[%emt 0:00:07]} 37. Qxd6 {[%emt 0:00:27]} Rxd6 {[%emt 0:00:01]} 38. Nf4 {[%emt 0:00:01]} g5 {[%emt 0:00:03]} 39. Ne2 {[%emt 0:00:10]} Rfd8 {[%emt 0:00:02]} 40. Ng3 {[%emt 0:00:16]} Rd5 {[%emt 0:00:13]} 41. Nf1 {[%emt 0:00:18]} f4 {[%emt 0:00:03]} 42. Nd2 {[%emt 0:00:12]} Re8 {[%emt 0:00:05]} 43. Nc4 {[%emt 0:00:06]} Rd4 {[%emt 0:00:07]} 44. Nxa5 {[%emt 0:00:11]} e3 {[%emt 0:00:03]} 45. fxe3 {[%emt 0:00:06]} fxe3 {[%emt 0:00:03]} 46. Nb3 {[%emt 0:00:35]} Rd5 {[%emt 0:00:02]} 47. Na1 {[%emt 0:00:39]} e2 {[%emt 0:00:04]} 48. Rd2 {[%emt 0:00:04]} Ne4 {[%emt 0:00:02]} 49. Rexe2 {[%emt 0:00:11]} dxe2 {[%emt 0:00:03]} *

[Event "56th Biel Festival Rapid 2023"]
[Site "Biel"]
[Date "2024.04.13"]
[Round "8.16"]
[White "Schweizer, Simon"]
[Black "Tureshbayev, Anuar"]
[Result "1-0"]
[WhiteElo "2123"]
[BlackElo "1845"]
[PlyCount "64"]
[EventDate "2023.07.16"]
[EventType "swiss"]
[EventCountry "SUI"]
[TimeControl "900+5"]

1. e4 {[%emt 0:00:13]} c5 {[%emt 0:00:01]} 2. Nf3 {[%emt 0:00:01]} d6 {[%emt 0:00:01]} 3. d4 {[%emt 0:00:02]} cxd4 {[%emt 0:00:02]} 4. Nxd4 {[%emt 0:00:02]} Nf6 {[%emt 0:00:02]} 5. Nc3 {[%emt 0:00:01]} g6 {[%emt 0:00:02]} 6. Be3 {[%emt 0:00:02]} Bg7 {[%emt 0:00:02]} 7. f3 {[%emt 0:00:02]} O-O {[%emt 0:00:02]} 8. Qd2 {[%emt 0:00:01]} Nc6 {[%emt 0:00:01]} 9. O-O-O {[%emt 0:00:02]} d5 {[%emt 0:00:06]} 10. Kb1 {[%emt 0:00:06]} Be6 {[%emt 0:01:45]} 11. Nxe6 {[%emt 0:00:30]} fxe6 {[%emt 0:00:02]} 12. exd5 {[%emt 0:00:03]} exd5 {[%emt 0:00:05]} 13. Nxd5 {[%emt 0:00:04]} Nxd5 {[%emt 0:00:15]} 14. Qxd5+ {[%emt 0:00:02]} Qxd5 {[%emt 0:00:06]} 15. Rxd5 {[%emt 0:00:03]} Kh8 {[%emt 0:00:09]} 16. Bb5 {[%emt 0:00:22]} Nb4 {[%emt 0:00:15]} 17. Rd7 {[%emt 0:00:17]} a6 {[%emt 0:00:14]} 18. Ba4 {[%emt 0:00:03]} b5 {[%emt 0:00:02]} 19. Bb3 {[%emt 0:00:02]} Rac8 {[%emt 0:00:29]} 20. Rhd1 {[%emt 0:00:24]} a5 {[%emt 0:00:08]} 21. c3 {[%emt 0:00:10]} Nc6 {[%emt 0:00:05]} 22. Bd5 {[%emt 0:00:19]} b4 {[%emt 0:00:59]} 23. Bxc6 {[%emt 0:00:24]} Rxc6 {[%emt 0:00:07]} 24. cxb4 {[%emt 0:00:08]} axb4 {[%emt 0:00:02]} 25. Rxe7 {[%emt 0:00:04]} Rfc8 {[%emt 0:00:15]} 26. Red7 {[%emt 0:00:02]} Bf6 {[%emt 0:00:22]} 27. Bd4 {[%emt 0:00:32]} Bxd4 {[%emt 0:00:02]} 28. R7xd4 {[%emt 0:00:01]} Rc2 {[%emt 0:00:03]} 29. Rd8+ {[%emt 0:00:05]} Kg7 {[%emt 0:00:05]} 30. Rxc8 {[%emt 0:00:03]} Rxc8 {[%emt 0:00:02]} 31. Rd4 {[%emt 0:00:07]} Re8 {[%emt 0:00:18]} 32. Kc2 {[%emt 0:00:04]} h5 {[%emt 0:00:00]} 1-0